fUSD/lending_fUSD_20240802
["ID","MTS","AMOUNT","RATE_DAILY","PERIOD"]
[333852757,1722562997262,-12810.53942274,0.000105,2]
[333852758,1722562997290,-200.0,0.000107,3]
[333852759,1722562997316,-150.0,0.0001078,2]
[333852760,1722562997623,-150.84,0.00010781,2]
[333852761,1722562997635,-12810.53942274,0.00010781,2]
[333852762,1722562997658,-200.0,0.00010781,2]
[333852763,1722562997677,-150.0,0.00010781,2]
[333852764,1722562997690,-100377.24115452,0.00010781,2]
[333852766,1722563049124,578.88,0.00025,60]
[333852769,1722563218530,3073.33,0.00025,60]
[333852770,1722563258898,1800.0,0.00027,120]
[333852778,1722563432402,-265.86531599,0.000105,2]
[333852780,1722563432595,-8342.45764404,0.000105,2]
[333852781,1722563432608,-3185.43150758,0.000105,2]
[333852782,1722563432617,-719.65871986,0.00010681,2]
[333852783,1722563432629,-3056.91018014,0.00010681,2]
[333852784,1722563432639,-225.56,0.00010697,2]
[333852785,1722563432648,-200.0,0.000107,3]
[333852786,1722563432659,-57.55115623,0.00010781,2]
[333852789,1722563438416,-357.5010377,0.00010781,2]
[333852819,1722563440476,-333.81892786,0.00010781,2]
[333852820,1722563440487,-264.4956,0.00010781,2]
[333852821,1722563440856,-3913.70127821,0.00010781,2]
[333852822,1722563440866,-500.0,0.000108,3]
[333852824,1722563440877,-758.0,0.0001089,2]
[333852825,1722563440886,-1453.3237,0.000109,2]
[333852826,1722563440897,-163.60882193,0.000109,2]
[333852827,1722563440906,-177.40844133,0.000109,2]
[333852828,1722563440915,-1964.20149209,0.000109,2]
[333852829,1722563440925,-176.85251866,0.000109,2]
[333852830,1722563440935,-700.0,0.000109,3]
[333852831,1722563440944,-359.65953708,0.000109,2]
[333852832,1722563440953,-10617.8994,0.000109,2]
[333852833,1722563440964,-180.37399071,0.000109,2]
[333852834,1722563440973,-1334.73929093,0.000109,2]
[333852835,1722563440982,-250.0,0.00010955,2]
[333852836,1722563440991,-150.0,0.00010959,2]
[333852837,1722563441001,-1057.28,0.00010959,2]
[333852838,1722563441010,-250.0,0.00010959,2]
[333852839,1722563441019,-2000.0,0.0001099,2]
[333852840,1722563441028,-4380.04183939,0.0001099,2]
[333852841,1722563441039,-623.77054816,0.00010999,2]
[333852842,1722563441051,-4034.69741092,0.00010999,2]
[333852843,1722563441060,-30790.57568071,0.00011,2]
[333852844,1722563441110,-1467.29741007,0.00011,2]
[333852845,1722563441121,-295.58402518,0.00011,2]
[333852846,1722563441132,-3310.30765838,0.00011,2]
[333852847,1722563441144,-460.63094984,0.00011,2]
[333852848,1722563441155,-1147.94373023,0.00011,2]
[333852849,1722563441166,-896.82497611,0.00011,2]
[333852850,1722563441177,-383.57266039,0.00011,2]
[333852851,1722563441208,-875.6832297,0.00011,2]
[333852852,1722563441219,-10522.60169228,0.00011,2]
[333852853,1722563441230,-5675.39807017,0.00011,2]
[333852854,1722563441241,-1950.58610927,0.00011,2]
[333852855,1722563441252,-1113.96280984,0.00011,2]
[333852856,1722563441263,-1409.47166077,0.00011,2]
[333852857,1722563441274,-1110.08886976,0.00011,2]
[333852858,1722563443458,-341.04,0.00011,2]
[333852860,1722563443469,-419.10287483,0.00011,2]
[333852862,1722563443480,-332.28537817,0.00011,2]
[333852864,1722563443641,-65795.11927648,0.00011,2]
[333852865,1722563443652,-366.56382658,0.00011,2]
[333852866,1722563443664,-1490.79089986,0.00011,2]
[333852867,1722563443675,-772.82854254,0.00011,2]
[333852877,1722563446714,-44320.96482503,0.00011,2]
[333852878,1722563446725,-290.05976315,0.00011,2]
[333852879,1722563446737,-1404.42714127,0.00011,2]
[333852880,1722563446939,-198991.97757444,0.00011,2]
[333852881,1722563446951,-434.012,0.00011,2]
[333852882,1722563446962,-1483.94,0.00011,2]
[333852883,1722563446973,-333.5134452,0.00011,2]
[333852884,1722563446984,-1712.25832484,0.00011,2]
[333852885,1722563446995,-283.49453764,0.00011,2]
[333852886,1722563447006,-261.60174887,0.00011,2]
[333852887,1722563447016,-344.65771857,0.00011,2]
[333852888,1722563447027,-500.0,0.00011,2]
[333852889,1722563447038,-1744.32203037,0.00011,2]
[333852890,1722563447051,-417.95823573,0.00011,2]
[333852891,1722563447065,-11397.34726008,0.00011,2]
[333852892,1722563447076,-1959.03154576,0.00011,2]
[333852893,1722563447087,-20614.17357923,0.00011,2]
[333852895,1722563608141,200.0,0.00027,120]
[333852896,1722564022263,160.32,8.219e-05,2]
[333852897,1722564060948,734.52270979,8.219e-05,2]
[333852898,1722564070299,155.0,8.219e-05,2]
[333852899,1722564112872,1309.1615635,8.219e-05,2]
[333852900,1722564128825,1309.1615635,8.219e-05,2]
[333852901,1722564183311,267.93438793,8.219e-05,2]
[333852902,1722564240890,1309.1615635,8.219e-05,2]
[333852903,1722564338560,1309.1615635,8.219e-05,2]
[333852907,1722564436908,1309.1615635,8.219e-05,2]
[333852908,1722564462494,198.080211,0.00025,62]
[333852909,1722564491317,152.3,8.219e-05,2]
[333852911,1722564576705,1309.88949665,8.219e-05,2]
[333852923,1722564631835,-236.41866951,9.962e-05,2]
[333852924,1722564631844,-924.13,0.0001001,2]
[333852925,1722564631854,-173.51,0.00010023,2]
[333852926,1722564631863,-216.03,0.00010023,2]
[333852927,1722564631873,-250.0,0.00010042,2]
[333852928,1722564631883,-360.9,0.00010051,2]
[333852929,1722564631892,-177.63,0.00010062,2]
[333852930,1722564631901,-2141.71,0.00010085,2]
[333852931,1722564631911,-300.0,0.00010115,2]
[333852932,1722564631921,-8375.0533972,0.00010116,2]
[333852933,1722564631933,-1624.9466028,0.00010116,2]
[333852934,1722564631943,-2024.68966735,0.00010135,2]
[333852935,1722564631955,-679.71,0.00010135,2]
[333852936,1722564631966,-8346.98285621,0.00010135,2]
[333852937,1722564632056,-5669.67267634,0.00010135,2]
[333852939,1722564637608,-404.64145571,0.00010135,2]
[333852945,1722564638431,-4869.05284405,0.00010135,2]
[333852948,1722564638445,-658.17930431,0.00010135,2]
[333852950,1722564638458,-688.35,0.00010135,2]
[333852952,1722564638471,-558.72119603,0.00010135,2]
[333852954,1722564638481,-499.99,0.00010135,2]
[333852956,1722564638492,-646.67,0.00010135,2]
[333852958,1722564638502,-174.79,0.00010149,2]
[333852960,1722564638512,-152.3,0.00010476,2]
[333852962,1722564638523,-150.0,0.00010499,2]
[333852964,1722564638533,-155.61614551,0.000105,2]
[333852966,1722564638543,-609.01652429,0.000105,2]
[333852968,1722564638555,-4186.27582778,0.000105,2]
[333852970,1722564638567,-396.45332396,0.000105,2]
[333852972,1722564639835,-4786.36046934,0.000105,2]
[333852973,1722564639847,-1943.31964867,0.000105,2]
[333852974,1722564639860,-889.1136287,0.000105,2]
[333852975,1722564639869,-412.79386825,0.00010573,2]
[333852976,1722564639881,-3343.97506869,0.00010573,2]
[333852977,1722564639893,-258.26659757,0.00010573,2]
[333852978,1722564639904,-1028.443,0.00010573,2]
[333852979,1722564639915,-298.57312534,0.00010573,2]
[333852980,1722564639927,-5521.87,0.00010573,2]
[333852981,1722564639938,-647.1032257,0.00010573,2]
[333852982,1722564639949,-546.4121415,0.00010573,2]
[333852983,1722564639960,-254.48068979,0.00010573,2]
[333852984,1722564639972,-1184.4568206,0.00010573,2]
[333852985,1722564640082,-20507.75696256,0.00010573,2]
[333852986,1722564640091,-259.6348,0.00010573,2]
[333852987,1722564640102,-1010.6446,0.00010681,2]
[333852988,1722564640111,-6372.03,0.00010807,2]
[333852989,1722564640121,-159222.0,0.0001089,2]
[333852990,1722564640130,-299.99,0.00010899,2]
[333852991,1722564640141,-182.0217,0.000109,2]
[333852992,1722564640151,-368.72555788,0.000109,2]
[333852993,1722564640160,-1767.78134289,0.000109,2]
[333852994,1722564640170,-177.40844131,0.000109,2]
[333852995,1722564640180,-176.85251866,0.000109,2]
[333852996,1722564640189,-1259.34699807,0.000109,2]
[333852997,1722564640204,-250.0,0.00010959,2]
[333852998,1722564640213,-2003.64889326,0.00011,2]
[333852999,1722564640225,-2621.60252239,0.00011,2]
[333853000,1722564640268,-11865.57864312,0.00011,2]
[333853001,1722564640282,-1765.5,0.00011,2]
[333853002,1722564640294,-1922.42255462,0.00011,2]
[333853003,1722564640306,-2819.54587627,0.00011,2]
[333853004,1722564640329,-1295.36,0.00010899,2]
[333853006,1722564640339,-1140.02767799,0.00011,2]
[333853022,1722564642745,-701.11,0.00011,2]
[333853023,1722564642756,-1174.21071435,0.00011,2]
[333853024,1722564642767,-1521.68022522,0.00011,2]
[333853025,1722564642781,-409067.18578154,0.00011,2]
[333853026,1722564642952,-5753.72585808,0.00011,2]
[333853036,1722564646766,-254.08592998,0.00011,2]
[333853037,1722564646778,-895.73293621,0.00011,2]
[333853038,1722564646789,-1366.78449882,0.00011,2]
[333853039,1722564646800,-1504.3022589,0.00011,2]
[333853040,1722564646811,-2356.43045917,0.00011,2]
[333853041,1722564646823,-2544.01325688,0.00011,2]
[333853042,1722564646834,-319.31715993,0.00011,2]
[333853043,1722564646845,-2910.55810647,0.00011,2]
[333853044,1722564646857,-890.2,0.00011,2]
[333853045,1722564646869,-2315.62251688,0.00011,2]
[333853046,1722564808780,200.0,0.00027,120]
[333853047,1722564809648,163.49,0.0001337,30]
[333853048,1722564892696,-155.61614551,0.000105,2]
[333853049,1722564892717,-1844.38385449,0.000105,2]
[333853050,1722564894165,-2000.0,0.000105,2]
[333853051,1722564906862,-500.0,0.000105,2]
[333853056,1722564974966,152.3,8.24e-05,2]
[333853065,1722565517381,152.3,8.249e-05,2]
[333853111,1722565831964,-250.0,0.00010058,2]
[333853112,1722565831974,-568.82444517,0.00010074,2]
[333853113,1722565831986,-757.13168339,0.00010074,2]
[333853114,1722565831998,-2205.26387144,0.00010074,2]
[333853115,1722565832008,-2184.95194742,0.0001008,2]
[333853117,1722565832176,-658.70770687,0.0001008,2]
[333853126,1722565837788,-449.07034571,0.0001008,2]
[333853127,1722565837798,-272.0,0.00010084,2]
[333853128,1722565837808,-160.0,0.00010146,2]
[333853129,1722565837818,-300.0,0.00010499,2]
[333853130,1722565837827,-300.0,0.00010499,2]
[333853131,1722565837837,-150.0,0.00010499,2]
[333853132,1722565837847,-1049.78501246,0.000105,2]
[333853133,1722565837856,-449.16897912,0.000105,2]
[333853134,1722565837867,-155.61614551,0.000105,2]
[333853135,1722565837876,-259.59210003,0.000105,2]
[333853136,1722565838483,-153.19646273,0.000105,2]
[333853138,1722565838495,-189.14312008,0.000105,2]
[333853140,1722565838509,-187.36413025,0.000105,2]
[333853141,1722565838520,-170.35710837,0.000105,2]
[333853142,1722565838532,-181.67289393,0.000105,2]
[333853143,1722565838546,-107.61030586,0.000105,2]
[333853144,1722565838559,-2452.7703,0.000105,2]
[333853145,1722565838572,-3275.5657488,0.000105,2]
[333853146,1722565838586,-533.24427578,0.000105,2]
[333853147,1722565838599,-400.2529,0.000105,2]
[333853148,1722565838611,-6041.0958923,0.000105,2]
[333853149,1722565838622,-3699.16210622,0.00010888,2]
[333853234,1722565842934,-4940.96458841,0.00010888,2]
[333853235,1722565842946,-2029.20879541,0.00010888,2]
[333853236,1722565843087,-37366.43719087,0.00010888,2]
[333853237,1722565843097,-1101.92862332,0.000109,2]
[333853238,1722565843107,-176.85251866,0.000109,2]
[333853239,1722565843117,-177.40844131,0.000109,2]
[333853240,1722565843127,-499.99,0.000109,2]
[333853241,1722565843136,-193.83,0.000109,2]
[333853242,1722565843146,-236.13645283,0.00010905,2]
[333853243,1722565843155,-1844.81799826,0.00010905,2]
[333853244,1722565843165,-6051.89819762,0.0001093,2]
[333853245,1722565843175,-152.3,0.00010937,2]
[333853246,1722565843185,-1000.0,0.0001094,2]
[333853247,1722565843194,-179.83,0.00010959,2]
[333853248,1722565843204,-25077.21094232,0.00010959,3]
[333853249,1722565843213,-3640.25842373,0.00010989,2]
[333853250,1722565843223,-150.49566877,0.00010999,2]
[333853251,1722565843233,-4645.41007848,0.00010999,2]
[333853252,1722565843243,-392367.50052185,0.00011,2]
[333853254,1722565843255,-1018.03971842,0.00011,2]
[333853256,1722565843266,-3397.93999999,0.00011,2]
[333853258,1722565843277,-19303.22012052,0.00011,2]
[333853280,1722565846116,-1921.37849271,0.00011,2]
[333853282,1722565846128,-1607.5,0.00011,2]
[333853285,1722565846140,-15730.51647615,0.00011,2]
[333853287,1722565846151,-1972.63374859,0.00011,2]
[333853289,1722565846163,-2116.83592838,0.00011,2]
[333853291,1722565846174,-1212.87950928,0.00011,2]
[333853293,1722565846186,-3448.8,0.00011,2]
[333853299,1722565846237,-1126.05552988,0.00011,2]
[333853300,1722565846295,-670.71479205,0.00011,2]
[333853301,1722565846308,-6925.67894862,0.00011,2]
[333853302,1722565846319,-1082.04073439,0.00011,2]
[333853303,1722565846332,-1504.4640098,0.00011,2]
[333853304,1722565846344,-1261.57350449,0.00011,2]
[333854045,1722566007603,200.0,0.00027,120]
[333854048,1722566496270,158.64,8.219e-05,2]
[333854049,1722566559249,1308.98979149,8.219e-05,2]
[333854090,1722567032236,-4657.5,9.919e-05,2]
[333854091,1722567032246,-1000.0,9.961e-05,2]
[333854092,1722567032255,-199.4561357,9.962e-05,2]
[333854093,1722567032264,-305.87188458,9.998e-05,2]
[333854094,1722567032274,-160.0,9.998e-05,2]
[333854095,1722567032283,-300.0,9.999e-05,2]
[333854096,1722567032293,-23900.0,0.0001,2]
[333854097,1722567032302,-200.0,0.00010024,2]
[333854098,1722567032311,-311.72,0.00010053,2]
[333854099,1722567032320,-250.0,0.00010053,2]
[333854100,1722567032330,-1852.42,0.00010056,2]
[333854101,1722567032339,-350.44,0.00010104,2]
[333854102,1722567032348,-150.0,0.0001011,2]
[333854103,1722567032358,-499.99,0.0001012,2]
[333854104,1722567032367,-193.83,0.0001012,2]
[333854105,1722567032376,-386.47,0.0001015,2]
[333854106,1722567032386,-158.64,0.00010483,2]
[333854107,1722567032395,-150.0,0.00010499,2]
[333854108,1722567032404,-12810.53942274,0.000105,2]
[333854109,1722567032413,-188.59770817,0.000105,2]
[333854110,1722567032422,-223.2718,0.000109,2]
[333854111,1722567032432,-296.2962,0.000109,2]
[333854112,1722567032441,-2988.684,0.000109,2]
[333854113,1722567032450,-195.4307,0.000109,2]
[333854114,1722567032462,-2723.0709,0.000109,2]
[333854115,1722567032472,-420.52,0.000109,2]
[333854116,1722567032481,-176.85251866,0.000109,2]
[333854117,1722567032491,-1101.92862332,0.000109,2]
[333854118,1722567032501,-331.85300211,0.000109,2]
[333854119,1722567032511,-174.00166874,0.000109,2]
[333854120,1722567032520,-171.32,0.00010938,2]
[333854121,1722567032530,-179.83,0.00010959,2]
[333854122,1722567032539,-25077.21094232,0.00010959,3]
[333854123,1722567032548,-150.99,0.00010962,2]
[333854124,1722567032558,-836.53811237,0.0001099,2]
[333854125,1722567032568,-155.34,0.0001099,2]
[333854126,1722567032577,-6080.6259691,0.00010997,2]
[333854127,1722567032587,-6883.08,0.00010997,2]
[333854128,1722567032597,-150.49566877,0.00010999,2]
[333854129,1722567032607,-4645.41007848,0.00010999,2]
[333854130,1722567032616,-1928.07057605,0.00010999,2]
[333854131,1722567032625,-34729.70408893,0.00011,2]
[333854132,1722567032638,-3476.12861861,0.00011,2]
[333854133,1722567032650,-796819.87946767,0.00011,2]
[333854134,1722567032659,-2001.03,0.00011,3]
[333854135,1722567032668,-111561.67805971,0.00011,2]
[333854136,1722567032681,-684.22157021,0.00011,2]
[333854137,1722567032692,-1904.64529424,0.00011,2]
[333854138,1722567032711,-845.39999995,0.00011,2]
[333854139,1722567032722,-1622.15927746,0.00011,2]
[333854173,1722567038950,-473.3383626,0.00011,2]
[333854174,1722567038974,-311.52452641,0.00011,2]
[333854175,1722567038986,-600.5,0.00011,2]
[333854176,1722567038997,-372.94911677,0.00011,2]
[333854177,1722567039008,-4578.23329431,0.00011,2]
[333854178,1722567039019,-1720.75393469,0.00011,2]
[333854179,1722567039029,-1622.691835,0.00011,2]
[333854180,1722567039107,-308.46,0.00011,2]
[333854181,1722567039123,-3547.97188898,0.00011,2]
[333854182,1722567039134,-16357.77771923,0.00011,2]
[333854190,1722567040721,-12785.46668,0.00011,2]
[333854192,1722567040733,-1661.8907034,0.00011,2]
[333854195,1722567040744,-268.70186223,0.00011,2]
[333854197,1722567040755,-1600.741568,0.00011,2]
[333854199,1722567040766,-1259.55991772,0.00011,2]
[333854201,1722567040777,-471.99,0.00011,2]
[333854203,1722567040788,-400.0,0.00011,2]
[333854205,1722567040799,-215392.00701225,0.00011,2]
[333854208,1722567040810,-1950.0,0.00011,2]
[333854211,1722567040833,-5021.4320935,0.00011,2]
[333854213,1722567040844,-600.96056067,0.00011,2]
[333854215,1722567040855,-9423.07783008,0.00011,2]
[333854218,1722567040866,-121151.88394596,0.00011,2]
[333854256,1722567043157,-284.39201888,0.00010997,2]
[333854257,1722567043167,-7304.26413685,0.00011,2]
[333854258,1722567043179,-9908.409195,0.00011,2]
[333854259,1722567043191,-897.57783721,0.00011,2]
[333854260,1722567043203,-1281.28,0.00011,2]
[333854261,1722567043214,-474862.30505802,0.00011,2]
[333854262,1722567043386,-816.075,0.00011,2]
[333854470,1722567046379,-3627.57220054,0.00011,2]
[333854474,1722567046390,-1280.62772,0.00011,2]
[333854477,1722567046402,-1102.79329248,0.00011,2]
[333854481,1722567046413,-684.60500397,0.00011,2]
[333854484,1722567046425,-399.98561821,0.00011,2]
[333854487,1722567046436,-21298.53302164,0.00011,2]
[333854490,1722567046447,-990.98409999,0.00011,2]
[333854492,1722567046458,-1750.00000001,0.00011,2]
[333854495,1722567046473,-5887.75451783,0.00011,2]
[333854499,1722567046484,-13567.27241404,0.00011,2]
[333854525,1722567046679,-1288.84,0.00011,2]
[333854529,1722567046691,-100456.15695405,0.00011,2]
[333854531,1722567046701,-1108.66,0.00011,2]
[333854534,1722567046710,-420.52,0.00011,2]
[333854536,1722567046724,-3000.0,0.00011,2]
[333854538,1722567046733,-216.0,0.00011012,2]
[333854540,1722567046743,-200.0,0.00011046,2]
[333854541,1722567046752,-6844.02825898,0.00011105,2]
[333854542,1722567046762,-5000.0,0.00011105,2]
[333854543,1722567047193,-1884.38420508,0.00011105,2]
[333854544,1722567047204,-189.87301769,0.00011105,2]
[333854545,1722567047213,-580.86820433,0.00011105,2]
[333854546,1722567047227,-236.41866951,0.00011105,2]
[333854547,1722567047236,-522.31224238,0.00011105,2]
[333854548,1722567047245,-11767.55546198,0.00011105,2]
[333854549,1722567047256,-252.76883574,0.00011105,2]
[333854550,1722567047267,-1357.53723886,0.00011105,2]
[333854552,1722567204497,300.957336,0.00026991,120]
[333854553,1722567214529,393.107,9.09e-05,2]
[333854560,1722567793592,185.6,8.219e-05,2]
[333854566,1722568232289,-488.11,9.353e-05,2]
[333854567,1722568232299,-1460.44,9.36e-05,2]
[333854568,1722568232309,-23900.0,9.376e-05,2]
[333854569,1722568232319,-250.0,9.445e-05,2]
[333854570,1722568232329,-1000.0,9.449e-05,2]
[333854571,1722568232339,-216.0,9.459e-05,2]
[333854572,1722568232347,-158.71,0.00010146,2]
[333854574,1722568232360,-158.71,0.00010148,2]
[333854576,1722568232369,-277.53,0.00010151,2]
[333854578,1722568232378,-158.71,0.00010151,2]
[333854579,1722568232388,-158.71,0.00010154,2]
[333854581,1722568232397,-499.99,0.00010154,2]
[333854583,1722568232407,-158.71,0.00010156,2]
[333854585,1722568232416,-158.71,0.00010159,2]
[333854586,1722568232426,-158.71,0.00010162,2]
[333854587,1722568232435,-158.71,0.00010164,2]
[333854588,1722568232444,-158.71,0.00010167,2]
[333854589,1722568232454,-158.71,0.0001017,2]
[333854590,1722568232463,-292.8,0.00010171,2]
[333854591,1722568232474,-158.71,0.00010172,2]
[333854592,1722568232483,-158.71,0.00010175,2]
[333854593,1722568232493,-158.71,0.00010177,2]
[333854594,1722568232503,-158.71,0.0001018,2]
[333854595,1722568232512,-158.71,0.00010183,2]
[333854596,1722568232521,-150.0,0.00010185,2]
[333854597,1722568232531,-158.71,0.00010185,2]
[333854598,1722568232540,-158.71,0.00010188,2]
[333854599,1722568232550,-158.71,0.00010191,2]
[333854600,1722568232560,-158.71,0.00010193,2]
[333854601,1722568232569,-158.71,0.00010196,2]
[333854602,1722568232579,-185.6,0.00010444,2]
[333854603,1722568232588,-12810.53942274,0.000105,2]
[333854604,1722568232597,-1664.0,0.000105,2]
[333854605,1722568232607,-1000.0,0.0001063,2]
[333854606,1722568232617,-1957.83,0.00010898,2]
[333854607,1722568232626,-5797.54,0.00010898,2]
[333854608,1722568232635,-150.99,0.00010899,2]
[333854609,1722568232644,-2960.4222,0.000109,2]
[333854610,1722568232654,-6219.2144,0.000109,2]
[333854611,1722568232663,-331.5353,0.000109,2]
[333854612,1722568232672,-631.1643,0.000109,2]
[333854613,1722568232682,-783.79,0.000109,2]
[333854614,1722568232691,-2500.0,0.00010905,2]
[333854615,1722568232700,-298.66770189,0.00010905,2]
[333854616,1722568232710,-38278.52884147,0.0001099,2]
[333854617,1722568232719,-45546.3758,0.00011005,2]
[333854618,1722568232729,-1000.0,0.00011005,2]
[333854619,1722568232738,-1000.0,0.00011005,2]
[333854620,1722568232748,-150.99,0.00011005,2]
[333854621,1722568232757,-964.18754537,0.00011005,2]
[333854622,1722568232766,-293.51550347,0.00011018,2]
[333854623,1722568232776,-522.31224238,0.00011018,2]
[333854624,1722568232785,-412.78856276,0.00011105,2]
[333854625,1722568232795,-1049.78501246,0.00011105,2]
[333854626,1722568232804,-170.35710837,0.00011105,2]
[333854627,1722568232814,-181.67289393,0.00011105,2]
[333854628,1722568232823,-299.70235459,0.00011105,2]
[333854629,1722568232833,-449.16897912,0.00011105,2]
[333854630,1722568232842,-353297.33035438,0.00011105,2]
[333854631,1722568232852,-155.0,0.00011105,2]
[333854632,1722568232861,-1711.48026168,0.00011105,2]
[333854633,1722568232870,-947.76827511,0.00011105,2]
[333854634,1722568232880,-414.42088347,0.00011105,2]
[333854635,1722568232889,-3000.0,0.00011105,2]
[333854636,1722568232899,-526.1093926,0.00011105,2]
[333854637,1722568232908,-493.15747906,0.00011105,2]
[333854638,1722568232917,-526.1093926,0.00011105,2]
[333854639,1722568232927,-357.7824787,0.00011116,2]
[333854640,1722568232937,-1029.5662378,0.00011124,2]
[333854641,1722568232946,-4038.5739231,0.00011132,2]
[333854642,1722568232955,-170.57,0.00011147,2]
[333854643,1722568232965,-255.0,0.00011194,2]
[333854644,1722568232974,-151.0,0.00011281,2]
[333854645,1722568232983,-151.0,0.00011281,2]
[333854646,1722568232994,-151.0,0.00011281,2]
[333854647,1722568233003,-190.054362,0.0001134,2]
[333854648,1722568233013,-374.41416606,0.00011344,2]
[333854649,1722568233023,-292.8,0.00011442,2]
[333854650,1722568233032,-300.0,0.000118,2]
[333854651,1722568233041,-1000.0,0.00011811,2]
[333854652,1722568233051,-5000.0,0.0001185,2]
[333854653,1722568233061,-420.52,0.0001189,2]
[333854654,1722568233070,-642.34,0.0001189,2]
[333854655,1722568233080,-298.66770183,0.00011904,2]
[333854656,1722568233089,-380.73551117,0.00012,2]
[333854657,1722568233098,-1000.0,0.00012,2]
[333854658,1722568233108,-550.0,0.00012,2]
[333854659,1722568233118,-150.0,0.00012164,2]
[333854660,1722568233127,-150.0,0.00012164,2]
[333854661,1722568233137,-425.87,0.00012164,2]
[333854662,1722568233147,-150.44,0.00012164,2]
[333854663,1722568233157,-714.07,0.00012164,2]
[333854664,1722568233166,-150.0,0.00012164,2]
[333854665,1722568233175,-150.25,0.00012164,2]
[333854666,1722568233185,-335.45,0.00012164,2]
[333854667,1722568233195,-425.87,0.00012164,2]
[333854668,1722568233204,-150.0,0.00012164,2]
[333854669,1722568233214,-150.0,0.00012164,2]
[333854670,1722568233224,-964.18754534,0.00012237,2]
[333854671,1722568233234,-160.0,0.00012498,2]
[333854672,1722568233244,-2383.99791829,0.0001254,2]
[333854673,1722568233256,-1256.32482105,0.00012665,2]
[333854674,1722568233265,-185.6,0.00012668,2]
[333854675,1722568233275,-292.8,0.00012713,2]
[333854676,1722568233284,-236.41866951,0.00012855,2]
[333854677,1722568233295,-155.0,0.00012883,2]
[333854678,1722568233304,-155.0,0.00012883,2]
[333854679,1722568233314,-155.0,0.00012883,2]
[333854680,1722568233324,-155.0,0.00012883,2]
[333854681,1722568233335,-200.0,0.000129,4]
[333854682,1722568233345,-298.66770183,0.00012904,2]
[333854683,1722568233354,-1000.0,0.00012993,2]
[333854684,1722568233364,-1600.0,0.00013,2]
[333854685,1722568233375,-3000.0,0.000132,2]
[333854686,1722568233384,-964.18754534,0.00013468,2]
[333854687,1722568233394,-364845.0,0.00013478,2]
[333854688,1722568233403,-179.44774043,0.00013548,2]
[333854689,1722568233412,-1390.8854407,0.00013648,2]
[333854690,1722568233423,-658.364,0.00013661,2]
[333854691,1722568233433,-436.1777,0.00013661,2]
[333854692,1722568233443,-4076.2382,0.00013661,2]
[333854693,1722568233453,-6670.1465,0.00013661,2]
[333854694,1722568233463,-199.12672043,0.0001367,2]
[333854695,1722568233473,-2751.0,0.00013699,2]
[333854696,1722568233483,-200.0,0.00013699,2]
[333854697,1722568233493,-179.36440596,0.000137,2]
[333854698,1722568233502,-169.40543532,0.0001372,2]
[333854699,1722568233512,-151.0,0.00013765,2]
[333854700,1722568233523,-151.0,0.00013765,2]
[333854701,1722568233533,-159.317751,0.00013765,2]
[333854702,1722568233543,-159.317751,0.00013765,2]
[333854703,1722568233552,-151.0,0.000138,2]
[333854704,1722568233562,-151.0,0.000138,2]
[333854705,1722568233572,-162.364476,0.000138,2]
[333854706,1722568233582,-162.364476,0.000138,2]
[333854707,1722568233592,-162.364476,0.000138,2]
[333854708,1722568233602,-162.364476,0.000138,2]
[333854709,1722568233611,-151.0,0.000138,2]
[333854710,1722568233621,-151.0,0.000138,2]
[333854711,1722568233631,-151.0,0.000138,2]
[333854712,1722568233641,-151.0,0.000138,2]
[333854713,1722568233651,-151.0,0.000138,2]
[333854714,1722568233661,-151.0,0.000138,2]